fUSD/lending_fUSD_20240525
["ID","MTS","AMOUNT","RATE_DAILY","PERIOD"]
[327908409,1716601833441,-155.0,0.00012806,2]
[327908410,1716601833451,-1273.86928001,0.00012807,2]
[327908411,1716601833460,-2955.13116688,0.00012808,2]
[327908412,1716601833469,-150.0,0.00012899,2]
[327908413,1716601833478,-573.7159,0.000129,2]
[327908414,1716601833488,-2009.39635309,0.000129,2]
[327908415,1716601833500,-316.5,0.000129,2]
[327908416,1716601833613,-174.10364691,0.000129,2]
[327908417,1716601833623,-165.2894016,0.000129,2]
[327908418,1716601833633,-5835.09877689,0.000129,2]
[327908419,1716601833644,-860.2099999,0.000129,2]
[327908420,1716601833656,-3319.27267154,0.000129,2]
[327908421,1716601833665,-221.54795954,0.000129,2]
[327908422,1716601833674,-1476.76684732,0.000129,2]
[327908423,1716601833683,-363.20536016,0.000129,2]
[327908424,1716601833905,-4676.16094522,0.000129,2]
[327908426,1716601833917,-1037.08295783,0.000129,2]
[327908429,1716601833929,-1090.04563808,0.000129,2]
[327908430,1716601833938,-3031.95791484,0.000129,2]
[327908432,1716601833948,-463.71043315,0.000129,2]
[327908434,1716601833957,-1151.78601393,0.00012918,2]
[327908436,1716601833968,-427.34999358,0.00012918,2]
[327908437,1716601833979,-367.39999985,0.00012918,2]
[327908438,1716601833989,-490.0,0.00012918,2]
[327908439,1716601834001,-423.02988,0.00012918,2]
[327908440,1716601834012,-378.73,0.00012918,2]
[327908443,1716601839418,-3928.19901387,0.00012918,2]
[327908445,1716601839428,-7166.49490123,0.00012936,2]
[327908447,1716601839439,-7166.49490123,0.00012954,2]
[327908449,1716601839448,-7166.49490123,0.00012972,2]
[327908451,1716601839457,-7166.49490123,0.0001299,2]
[327908453,1716601839467,-321.48900647,0.00012998,2]
[327908455,1716601839476,-214.64496502,0.00012998,2]
[327908457,1716601839486,-227.43564192,0.00012998,2]
[327908459,1716601839495,-156.09272632,0.00012998,2]
[327908461,1716601839506,-259.63876349,0.00012998,2]
[327908462,1716601839517,-219.87846239,0.00012998,2]
[327908463,1716601839527,-176.26964924,0.00012998,2]
[327908464,1716601839537,-234.58179994,0.00012998,2]
[327908465,1716601839547,-1655.90197369,0.00012998,2]
[327908466,1716601839556,-713.70379947,0.00012998,2]
[327908467,1716601839567,-3100.2599005,0.00012998,2]
[327908468,1716601839576,-1251.84820733,0.00012998,2]
[327908469,1716601839586,-236.23382046,0.00012998,2]
[327908470,1716601839595,-239.5557608,0.00012998,2]
[327908471,1716601839607,-208.79260604,0.00012998,2]
[327908472,1716601839617,-792.24978454,0.00012998,2]
[327908474,1716601839627,-538.43160854,0.00012998,2]
[327908476,1716601839636,-274.99544722,0.00012998,2]
[327908479,1716601839646,-951.01849641,0.00012998,2]
[327908481,1716601839655,-374.88170051,0.00012998,2]
[327908482,1716601839665,-179.69783128,0.00012998,2]
[327908483,1716601839675,-159.14268717,0.00012998,2]
[327908485,1716601839684,-158.82484591,0.00012998,2]
[327908487,1716601839694,-155.52066021,0.00012998,2]
[327908489,1716601839704,-1309.46599706,0.00012998,2]
[327908491,1716601839714,-186.9754405,0.00012998,2]
[327908492,1716601839724,-265.85002154,0.00012999,2]
[327908493,1716601839734,-326.68951487,0.00012999,2]
[327908494,1716601839743,-150.0,0.00012999,2]
[327908495,1716601839752,-150.0,0.00012999,2]
[327908496,1716601839763,-150.0,0.00012999,2]
[327908497,1716601839772,-150.0,0.00012999,2]
[327908498,1716601839782,-2062101.69992914,0.00013,2]
[327908499,1716601839794,-1023268.83267899,0.00013,2]
[327908524,1716601841420,-697.04268248,0.00013,2]
[327908525,1716601841431,-660.97209432,0.00013,2]
[327908540,1716601843141,-395.1260055,0.00012998,2]
[327908542,1716601843150,-417.153995,0.00013,2]
[327908544,1716601843392,-8103.88287174,0.00013,2]
[327908551,1716601843458,-2607.55365017,0.00013,2]
[327908552,1716601843532,-0.10935374,0.00013,2]
[327908556,1716601843995,-1034.24208217,0.00013,2]
[327908568,1716602506359,153.41,0.00011062,2]
[327908570,1716602756919,-386.74142714,0.0001278,2]
[327908571,1716602756940,-150.0,0.00012899,2]
[327908572,1716602756963,-6594.6492,0.000129,2]
[327908573,1716602756984,-9738.60937286,0.000129,2]
[327908583,1716603031352,153.41,0.00011218,2]
[327908589,1716603032593,-334.6637,0.000128,2]
[327908590,1716603032603,-220.7861,0.000128,2]
[327908591,1716603032612,-417.33938979,0.00012899,2]
[327908592,1716603032621,-1329.09016257,0.00012899,2]
[327908593,1716603032631,-4442.76983224,0.000129,2]
[327908600,1716603038529,-85818.6207949,0.000129,2]
[327908601,1716603038539,-39210.6002,0.000129,2]
[327908602,1716603038550,-1000.0,0.000129,2]
[327908603,1716603038559,-954.64764,0.000129,2]
[327908604,1716603038569,-5865.8960527,0.000129,2]
[327908605,1716603038578,-2021.30527656,0.000129,2]
[327908606,1716603038587,-250.0,0.00012922,2]
[327908607,1716603038596,-2000.0,0.00012922,3]
[327908608,1716603038604,-183.54,0.00012963,2]
[327908609,1716603038614,-220.00848903,0.00012998,2]
[327908610,1716603038623,-155.28948774,0.00012998,2]
[327908611,1716603038633,-326.68951487,0.00012998,2]
[327908612,1716603038643,-265.85002154,0.00012998,2]
[327908613,1716603038652,-155.52066021,0.00012998,2]
[327908614,1716603038661,-374.88170051,0.00012998,2]
[327908615,1716603038671,-158.82484591,0.00012998,2]
[327908616,1716603038680,-951.01849641,0.00012998,2]
[327908617,1716603038690,-159.14268717,0.00012998,2]
[327908618,1716603038700,-179.69783128,0.00012998,2]
[327908619,1716603038709,-792.24978454,0.00012998,2]
[327908620,1716603038719,-208.79260604,0.00012998,2]
[327908621,1716603038728,-274.99544722,0.00012998,2]
[327908622,1716603038738,-538.43160854,0.00012998,2]
[327908623,1716603038749,-239.5557608,0.00012998,2]
[327908624,1716603038759,-1655.90197369,0.00012998,2]
[327908625,1716603038768,-1251.84820733,0.00012998,2]
[327908626,1716603038778,-176.26964924,0.00012998,2]
[327908627,1716603038787,-3100.2599005,0.00012998,2]
[327908628,1716603038797,-219.87846239,0.00012998,2]
[327908629,1716603038806,-156.09272632,0.00012998,2]
[327908630,1716603038816,-236.23382046,0.00012998,2]
[327908631,1716603038825,-713.70379947,0.00012998,2]
[327908632,1716603038835,-214.64496502,0.00012998,2]
[327908633,1716603038844,-227.43564192,0.00012998,2]
[327908634,1716603038853,-259.63876349,0.00012998,2]
[327908635,1716603038863,-234.58179994,0.00012998,2]
[327908636,1716603038872,-321.48900647,0.00012998,2]
[327908637,1716603038881,-1309.46599706,0.00012998,2]
[327908638,1716603038891,-186.9754405,0.00012998,2]
[327908640,1716603038900,-259.71767026,0.00012998,2]
[327908642,1716603038909,-161.23430074,0.00012999,2]
[327908644,1716603038919,-150.0,0.00012999,2]
[327908645,1716603038928,-1957045.018636,0.00013,2]
[327908646,1716603038940,-1023268.83267899,0.00013,2]
[327908657,1716603043691,-4.43895811,0.00012898,2]
[327908658,1716603043957,-1483.56764189,0.00012898,2]
[327908659,1716603043967,-180.07657479,0.00013,2]
[327908670,1716603046538,-392.08287098,0.000129,2]
[327908691,1716603560664,157.56,0.00010722,2]
[327908696,1716604054731,157.56,0.00010208,2]
[327908724,1716604232724,-367.67329241,0.00012082,2]
[327908725,1716604232736,-605.84090694,0.00012082,2]
[327908726,1716604232748,-732.87580065,0.00012082,2]
[327908727,1716604232758,-42.27289119,0.00012087,2]
[327908728,1716604232769,-207.72710881,0.00012087,2]
[327908729,1716604232779,-150.0,0.0001209,2]
[327908730,1716604232788,-3944.27,0.0001212,2]
[327908731,1716604232799,-1000.0,0.00012126,2]
[327908732,1716604232809,-404.93,0.00012129,2]
[327908733,1716604232819,-250.0,0.00012158,2]
[327908734,1716604232829,-603.42,0.00012253,2]
[327908735,1716604232840,-30.98196179,0.00012308,3]
[327908736,1716604232852,-942.08096292,0.00012308,3]
[327908737,1716604232865,-522.90713206,0.00012308,3]
[327908738,1716604232877,-266.27999998,0.00012308,3]
[327908739,1716604232889,-237.74994325,0.00012308,3]
[327908740,1716604232899,-499.99,0.00012412,2]
[327908741,1716604232909,-14.70593955,0.00012413,2]
[327908742,1716604232921,-4448.92406045,0.00012413,2]
[327908743,1716604232930,-591.06444972,0.00012413,2]
[327908744,1716604232942,-3293.17555028,0.00012413,2]
[327908745,1716604232952,-155.66471987,0.00012553,2]
[327908746,1716604232962,-155.66471987,0.000128,2]
[327908747,1716604232972,-1000.0,0.000128,2]
[327908748,1716604232981,-379.6806306,0.000128,2]
[327908749,1716604232991,-183.54,0.00012848,2]
[327908750,1716604233001,-1595.01143663,0.00012862,2]
[327908751,1716604233011,-954.64764,0.0001287,2]
[327908752,1716604233021,-1196.18114634,0.00012889,2]
[327908753,1716604233030,-155.41391436,0.00012898,2]
[327908754,1716604233040,-155.28755499,0.00012898,2]
[327908755,1716604233051,-186.9754405,0.00012898,2]
[327908756,1716604233061,-1309.46599706,0.00012899,2]
[327908757,1716604233070,-8787.95012335,0.000129,2]
[327908758,1716604233080,-43271.5275271,0.000129,2]
[327908759,1716604233092,-36874.49649339,0.000129,2]
[327908760,1716604233103,-1848.61575999,0.000129,2]
[327908761,1716604233136,-4253.28735301,0.000129,2]
[327908762,1716604233147,-701.46736138,0.000129,2]
[327908763,1716604233158,-2121.37763752,0.000129,2]
[327908764,1716604233170,-1194.85289494,0.000129,2]
[327908765,1716604233182,-3971.0701764,0.000129,2]
[327908766,1716604233193,-4895.61008879,0.000129,2]
[327908774,1716604238776,-375.60545082,0.00012898,2]
[327908775,1716604238786,-867.69470748,0.000129,2]
[327908776,1716604238796,-1000.0,0.000129,2]
[327908777,1716604238806,-780.64679087,0.000129,2]
[327908778,1716604238818,-5040.73664175,0.000129,2]
[327908779,1716604238828,-3084.934924,0.000129,2]
[327908780,1716604238840,-236093.68164338,0.000129,2]
[327908781,1716604238850,-39210.6002,0.000129,2]
[327908782,1716604238860,-500.0,0.000129,2]
[327908783,1716604238869,-183.70998352,0.000129,2]
[327908784,1716604238879,-258.79435456,0.000129,2]
[327908785,1716604238889,-7500.0,0.000129,2]
[327908786,1716604238898,-188.47964542,0.0001299,2]
[327908787,1716604238908,-161.23430074,0.00012998,2]
[327908788,1716604238917,-219.87846239,0.00012998,2]
[327908789,1716604238927,-236.23382046,0.00012998,2]
[327908790,1716604238936,-214.64496502,0.00012998,2]
[327908791,1716604238946,-3100.2599005,0.00012998,2]
[327908792,1716604238955,-321.48900647,0.00012998,2]
[327908793,1716604238965,-259.71767026,0.00012998,2]
[327908794,1716604238975,-713.70379947,0.00012998,2]
[327908795,1716604238984,-176.26964924,0.00012998,2]
[327908796,1716604238994,-156.09272632,0.00012998,2]
[327908797,1716604239004,-227.43564192,0.00012998,2]
[327908798,1716604239013,-259.63876349,0.00012998,2]
[327908799,1716604239024,-234.58179994,0.00012998,2]
[327908800,1716604239034,-951.01849641,0.00012998,2]
[327908801,1716604239044,-326.68951487,0.00012998,2]
[327908803,1716604239057,-538.43160854,0.00012998,2]
[327908805,1716604239068,-1251.84820733,0.00012998,2]
[327908807,1716604239079,-159.14268717,0.00012998,2]
[327908809,1716604239090,-239.5557608,0.00012998,2]
[327908810,1716604239102,-158.82484591,0.00012998,2]
[327908811,1716604239113,-179.69783128,0.00012998,2]
[327908812,1716604239125,-155.52066021,0.00012998,2]
[327908813,1716604239136,-1655.90197369,0.00012998,2]
[327908814,1716604239147,-374.88170051,0.00012998,2]
[327908815,1716604239158,-220.00848903,0.00012998,2]
[327908816,1716604239170,-274.99544722,0.00012998,2]
[327908817,1716604239181,-265.85002154,0.00012998,2]
[327908818,1716604239192,-208.79260604,0.00012998,2]
[327908819,1716604239204,-792.24978454,0.00012998,2]
[327908820,1716604239216,-155.28948774,0.00012998,2]
[327908821,1716604239228,-1652.51651072,0.00012999,2]
[327908822,1716604239240,-53396.85860809,0.00013,2]
[327908823,1716604239255,-996.82485742,0.00013,2]
[327908824,1716604239268,-598.12889179,0.00013,2]
[327908825,1716604239283,-2024367.32887187,0.00013,2]
[327908826,1716604239296,-1023268.83267899,0.00013,2]
[327908827,1716604239313,-1711.82593695,0.00013,2]
[327908828,1716604239325,-31828.93560127,0.00013,2]
[327908829,1716604239422,-8181.198,0.00013,2]
[327908830,1716604239435,-373.45905139,0.00013,2]
[327908831,1716604239448,-706.35970613,0.00013,2]
[327908833,1716604241624,-748.3871062,0.00013,2]
[327908834,1716604241636,-685.04773081,0.00013,2]
[327908836,1716604243761,-3064.89972456,0.00013,2]
[327908841,1716604244023,-1022.53766816,0.00013,2]
[327908842,1716604244038,-11683.22922962,0.00013,2]
[327908843,1716604244052,-2072.41257676,0.00013,2]
[327908844,1716604244064,-328.04999985,0.00013,2]
[327908845,1716604244076,-792.16022245,0.00013,2]
[327908846,1716604244366,-1988.97382867,0.00013,2]
[327908855,1716604550184,157.56,0.0001119,2]
[327908856,1716604598586,2072.0,0.0003,30]
[327908857,1716605029242,369.0,0.00031,120]
[327908858,1716605055494,157.56,0.00011183,2]
[327908907,1716605432140,-2364.61788265,0.00012699,2]
[327908908,1716605432150,-2039.5516,0.000127,2]
[327908909,1716605432159,-2806.83051735,0.000127,2]
[327908910,1716605432171,-277.94262863,0.000127,2]
[327908911,1716605432182,-608.79,0.000127,2]
[327908912,1716605432193,-361.15,0.000127,2]
[327908913,1716605432230,-1421.2,0.000127,2]
[327908914,1716605432242,-453.51,0.000127,2]
[327908937,1716605437952,-796.703797,0.000127,2]
[327908938,1716605437964,-311.75649,0.000127,2]
[327908939,1716605437976,-260.21525013,0.000127,2]
[327908940,1716605437987,-4743.89536184,0.000127,2]
[327908941,1716605438000,-1086.93189934,0.000127,2]
[327908942,1716605438012,-2681.43377846,0.000127,2]
[327908943,1716605438230,-1002.46248059,0.000127,2]
[327908946,1716605438243,-63472.18469666,0.000127,2]
[327908948,1716605438252,-1581.03970624,0.00012782,2]
[327908950,1716605438262,-155.22868349,0.00012798,2]
[327908952,1716605438272,-172.56792404,0.00012798,2]
[327908954,1716605438282,-201.7814715,0.00012798,2]
[327908956,1716605438291,-263.21253355,0.00012798,2]
[327908958,1716605438303,-176.32519328,0.00012798,2]
[327908960,1716605438313,-489.64194509,0.00012798,2]
[327908961,1716605438323,-290.78750986,0.00012798,2]
[327908962,1716605438333,-10090.00119814,0.00012798,2]
[327908963,1716605438342,-365.28886298,0.00012798,2]
[327908964,1716605438352,-602.7438995,0.00012798,2]
[327908965,1716605438362,-3349.60856421,0.00012798,2]
[327908966,1716605438372,-779.87935614,0.00012798,2]
[327908967,1716605438382,-4756.14807902,0.00012799,2]
[327908968,1716605438392,-167049.8711,0.000128,2]
[327908969,1716605438401,-500.0,0.000128,2]
[327908970,1716605438411,-1000.0,0.000128,2]
[327908971,1716605438420,-1076.56303167,0.00012889,2]
[327908972,1716605438430,-150.99,0.00012889,2]
[327908973,1716605438439,-338.04490572,0.00012898,2]
[327908974,1716605438449,-2866.2282,0.000129,2]
[327908975,1716605438459,-8415.03024472,0.000129,2]
[327908976,1716605438468,-10000.0,0.000129,2]
[327908977,1716605438478,-7500.0,0.000129,2]
[327908978,1716605438488,-183.23354116,0.000129,2]
[327908979,1716605438497,-499.99,0.000129,2]
[327908980,1716605438507,-2021.30527656,0.000129,2]
[327908981,1716605438517,-6206.77254412,0.000129,2]
[327908982,1716605438526,-183.23354115,0.00012916,2]
[327908983,1716605438536,-219.53334895,0.00012916,2]
[327908984,1716605438545,-882.49165964,0.00012968,2]
[327908985,1716605438556,-2068.83014874,0.00012968,2]
[327908986,1716605438565,-157.15535153,0.00012968,2]
[327908987,1716605438575,-150.0,0.00012999,2]
[327908988,1716605438584,-150.0,0.00012999,2]
[327908989,1716605438593,-150.0,0.00012999,2]
[327908990,1716605438602,-150.0,0.00012999,2]
[327908991,1716605438611,-150.0,0.00012999,2]
[327908992,1716605438621,-309541.90539473,0.00013,2]
[327908993,1716605438630,-712115.59744421,0.00013,2]
[327908994,1716605438639,-1003492.81807092,0.00013,2]
[327908995,1716605438651,-1023268.83267899,0.00013,2]
[327908996,1716605438662,-1732.62072383,0.00013,2]
[327908997,1716605438673,-326.12204379,0.00013,2]
[327908998,1716605438684,-5154.41667,0.00013,2]
[327908999,1716605440835,-1387.7074705,0.000129,2]
[327909000,1716605440848,-914.35207405,0.000129,2]
[327909001,1716605440859,-257.59616578,0.000129,2]
[327909002,1716605440871,-286.313,0.000129,2]
[327909003,1716605440883,-3360.80383373,0.000129,2]
[327909004,1716605440893,-3372.2212101,0.00013,2]
[327909007,1716605441975,-1121.2213578,0.00013,2]
[327909008,1716605441989,-890.3364215,0.00013,2]
[327909009,1716605442000,-4236.92671416,0.00013,2]
[327909018,1716605443337,-1290.3013903,0.00013,2]
[327909021,1716605443349,-503.99410468,0.00013,2]
[327909022,1716605443364,-344.10978337,0.00013,2]
[327909024,1716605443376,-2839.91293249,0.00013,2]
[327909027,1716605443995,-925.50594997,0.00012999,2]
[327909028,1716605444007,-427.149998,0.00012999,2]
[327909029,1716605444019,-353.669711,0.00012999,2]
[327909030,1716605444030,-1149.14608174,0.00013,2]
[327909031,1716605444044,-9001.54199661,0.00013,2]
[327909035,1716605445991,-4477.5877217,0.000129,2]
[327909036,1716605446002,-278.97054483,0.000129,2]
[327909037,1716605446014,-581.0,0.000129,2]
[327909038,1716605446025,-869.21427753,0.000129,2]
[327909039,1716605446034,-1417.93617241,0.00013,2]
[327909040,1716605446049,-2437.47706605,0.00013,2]
[327909042,1716605446247,-2024.71334396,0.00013,2]
[327909043,1716605446259,-1213.01847673,0.00013,2]
[327909044,1716605446270,-2089.86470127,0.00013,2]
[327909045,1716605446281,-9117.42014371,0.00013,2]
[327909046,1716605446293,-6750.72008381,0.00013,2]
[327909047,1716605446306,-16685.43148022,0.00013,2]
[327909048,1716605446317,-10626.67261,0.00013,2]
[327909049,1716605446328,-15244.77312,0.00013,2]
[327909083,1716605462231,178.17367127,0.00011183,2]
[327909084,1716605462252,755.73579423,0.00011183,2]
[327909094,1716606077981,157.56,0.00011434,2]
[327909095,1716606194395,1000.0,0.0003,30]
[327909096,1716606226889,9000.0,0.0003,30]
[327909112,1716606559866,295.30237999,0.00031,120]
[327909114,1716606613503,157.56,0.00010645,2]
[327909119,1716606632362,-393.45758232,0.00012143,2]
[327909120,1716606632372,-169.53,0.00012563,2]
[327909121,1716606632381,-219.0,0.00012699,2]
[327909122,1716606632391,-500.0,0.000127,2]
[327909123,1716606632400,-767.44012139,0.000127,2]
[327909124,1716606632411,-3314.73497861,0.000127,2]
[327909125,1716606632420,-4767.30324096,0.000127,2]
[327909126,1716606632433,-1272.24,0.000127,2]
[327909127,1716606632444,-1557.99926877,0.000127,2]
[327909128,1716606632455,-431.18512968,0.000127,2]
[327909129,1716606632466,-15549.14852517,0.000127,2]
[327909151,1716606638104,-2500.0,0.000127,2]
[327909152,1716606638117,-5670.05233801,0.000127,2]
[327909153,1716606638128,-911.48925428,0.000127,2]
[327909154,1716606638140,-1678.94356151,0.000127,2]
[327909155,1716606638151,-715.58830392,0.000127,2]
[327909156,1716606638163,-1506.12972601,0.000127,2]
[327909157,1716606638175,-1706.32043724,0.000127,2]
[327909158,1716606638186,-6315.07240917,0.000127,2]
[327909159,1716606638198,-1216.87852005,0.000127,2]
[327909160,1716606638211,-42886.49828523,0.000127,2]
[327909161,1716606638220,-250.0,0.00012769,2]
[327909162,1716606638229,-200.0,0.00012811,2]
[327909163,1716606638239,-2627.82,0.00012867,2]
[327909164,1716606638248,-1076.56303167,0.0001289,2]
[327909165,1716606638258,-735.18097479,0.00012899,2]
[327909166,1716606638267,-186.62713376,0.000129,2]
[327909167,1716606638276,-10000.0,0.000129,2]
[327909168,1716606638285,-1000.0,0.000129,2]
[327909169,1716606638295,-5822.2184,0.000129,2]
[327909170,1716606638304,-4148.7381918,0.000129,2]
[327909171,1716606638315,-506.34121627,0.000129,2]
[327909172,1716606638328,-11454.06384856,0.00012912,2]
[327909173,1716606638338,-157.15535153,0.00012968,2]
[327909174,1716606638348,-882.49165964,0.00012968,2]
[327909175,1716606638361,-2068.83014874,0.00012968,2]
[327909176,1716606638371,-1600.6604005,0.0001299,2]
[327909177,1716606638380,-27426.8606119,0.0001299,2]
[327909178,1716606638391,-150.99,0.0001299,2]
[327909180,1716606638400,-3336.0313655,0.0001299,2]
[327909181,1716606638409,-6958.932217,0.0001299,2]
[327909182,1716606638419,-27531.2190766,0.0001299,2]
[327909183,1716606638430,-250.0,0.00012993,2]
[327909184,1716606638439,-853.16282948,0.00012999,2]
[327909185,1716606638448,-499.99,0.00012999,2]
[327909186,1716606638458,-150.0,0.00012999,2]
[327909187,1716606638467,-1986342.9939781,0.00013,2]
[327909188,1716606638478,-1023268.83267899,0.00013,2]
[327909189,1716606638509,-3094.32703647,0.00013,2]
[327909190,1716606638522,-10831.79500732,0.00013,2]
[327909191,1716606638533,-648.10177974,0.00013,2]
[327909192,1716606638546,-2799.3000199,0.00013,2]
[327909222,1716606640850,-135845.64774757,0.00013,2]
[327909230,1716606641212,-422.75999958,0.00013,2]
[327909231,1716606641299,-45114.41754548,0.00013,2]
[327909232,1716606641311,-1390.42,0.00013,2]
[327909260,1716606644602,-426.58141474,0.00012999,2]
[327909261,1716606644613,-262.13858526,0.00013,2]
[327909294,1716606646154,-1373.84592932,0.00013,2]
[327909295,1716606647166,-7369.53865698,0.00013,2]
[327909296,1716606647178,-1962.99053343,0.00013,2]
[327909299,1716606650295,2412.7373498,7.984e-05,2]
[327909301,1716606794565,200.0,0.00010959,2]
[327909302,1716606794957,200.0,0.00010959,2]
[327909303,1716606806739,500.0,7.919e-05,2]
[327909304,1716606807127,500.0,7.92e-05,2]
[327909305,1716606807544,500.0,7.92e-05,2]
[327909311,1716607099132,157.35,0.000105,2]
[327909314,1716607604141,-155.00396994,0.00012486,2]
[327909315,1716607715314,157.35,0.00010623,2]
[327909325,1716607832220,-1325.97988968,0.00012486,2]
[327909327,1716607832230,-2615.54,0.00012487,2]
[327909328,1716607832240,-168.84,0.00012487,2]
[327909329,1716607832249,-250.0,0.0001254,2]
[327909330,1716607832258,-611.04,0.00012582,2]
[327909332,1716607832267,-1124.0,0.00012741,2]
[327909334,1716607832277,-1000.0,0.00012746,2]
[327909336,1716607832286,-363.25426856,0.0001276,2]
[327909338,1716607832295,-178.55,0.00012769,2]
[327909340,1716607832304,-250.0,0.00012775,2]
[327909342,1716607832314,-382.70944787,0.00012869,2]
[327909343,1716607832324,-457.65,0.00012869,2]
[327909344,1716607832334,-407.43374487,0.0001287,2]
[327909345,1716607832345,-864.27009513,0.0001287,2]
[327909346,1716607832354,-500.0,0.0001289,2]
[327909347,1716607832364,-150.99,0.0001289,2]
[327909348,1716607832373,-150.99,0.0001289,2]
[327909349,1716607832384,-2652.31003011,0.000129,2]
[327909350,1716607832396,-332.51735565,0.000129,2]
[327909351,1716607832602,-4720.96206971,0.000129,2]
[327909352,1716607832615,-1682.71104532,0.000129,2]
[327909358,1716607832665,-517.9614323,0.000129,2]
[327909360,1716607832676,-633.63353671,0.000129,2]
[327909362,1716607832685,-169.47667939,0.000129,2]
[327909364,1716607832697,-666.15532984,0.000129,2]
[327909366,1716607832708,-580.77090606,0.000129,2]
[327909368,1716607832720,-2699.41888217,0.000129,2]
[327909369,1716607832729,-183.23354116,0.000129,2]
[327909370,1716607832738,-1030.73633281,0.000129,2]
[327909371,1716607832750,-1618.11100635,0.000129,2]
[327909372,1716607832759,-210.85679915,0.000129,2]
[327909373,1716607832769,-968.90672853,0.000129,2]
[327909374,1716607832778,-338.04490572,0.000129,2]
[327909375,1716607832788,-155.69425479,0.00012988,2]
[327909376,1716607832801,-5152.21371078,0.00012989,2]
[327909377,1716607832813,-354.89076722,0.00012989,2]
[327909378,1716607832822,-3426.3963909,0.00012989,2]
[327909379,1716607832832,-3178.3886851,0.00012989,2]
[327909380,1716607832843,-23174.32415178,0.00012989,2]
[327909381,1716607832855,-685.05424735,0.00012989,2]
[327909382,1716607832870,-484.32,0.00012989,2]
[327909383,1716607832896,-1325.79820287,0.00012989,2]
[327909385,1716607838187,-24226.7786724,0.00012989,2]
[327909387,1716607838197,-726.6919257,0.00012989,2]
[327909389,1716607838208,-12451.6594197,0.00012989,2]
[327909391,1716607838217,-158.54256921,0.00012998,2]
[327909393,1716607838227,-266.6847375,0.00012998,2]
[327909395,1716607838236,-1221.52034072,0.00012998,2]
[327909397,1716607838246,-210.152107,0.00012998,2]
[327909399,1716607838255,-537.57727881,0.00012998,2]
[327909400,1716607838265,-156.25366822,0.00012998,2]
[327909402,1716607838274,-203.83542428,0.00012998,2]
[327909404,1716607838283,-3293.39015386,0.00012998,2]
[327909406,1716607838292,-179.32884796,0.00012998,2]
[327909407,1716607838303,-155.0,0.00012998,2]
[327909408,1716607838312,-157.97330925,0.00012999,2]
[327909409,1716607838322,-209.92047458,0.00012999,2]
[327909410,1716607838332,-4057.76626581,0.00012999,2]
[327909411,1716607838342,-213.29070737,0.00012999,2]
[327909412,1716607838351,-3098.61742733,0.00012999,2]
[327909413,1716607838361,-908956.75041781,0.00013,2]
[327909414,1716607838373,-2022.52795283,0.00013,2]
[327909415,1716607838384,-7021.94737349,0.00013,2]
[327909416,1716607838479,-68830.99999997,0.00013,2]
[327909417,1716607838490,-384.97373498,0.00013,2]
[327909418,1716607838501,-3363.19212537,0.00013,2]
[327909419,1716607838513,-1325.81220542,0.00013,2]
[327909420,1716607838524,-857.23661901,0.00013,2]
[327909421,1716607838535,-1422.6949102,0.00013,2]
[327909422,1716607838547,-729.82228752,0.00013,2]
[327909423,1716607838558,-28663.21010576,0.00013,2]
[327909425,1716607841985,-230.4377,0.000129,2]
[327909426,1716607841995,-465.7623,0.00013,2]
[327909427,1716607842007,-264633.48234238,0.00013,2]
[327909428,1716607842019,-4896.92,0.00013,2]
[327909429,1716607842227,-659.94979241,0.00013,2]
[327909430,1716607842239,-45009.6069027,0.00013,2]
[327909431,1716607842251,-389.79909619,0.00013,2]
[327909440,1716607843509,-662.38136993,0.00013,2]
[327909441,1716607843935,-539.65596937,0.00013,2]
[327909442,1716607843947,-24133.31069795,0.00013,2]
[327909443,1716607844035,-213.29070737,0.00012999,2]
[327909444,1716607844044,-282.15756554,0.00013,2]
[327909445,1716607844056,-1883.65102,0.00013,2]
[327909446,1716607844068,-1036036.25759565,0.00013,2]
[327909447,1716607844080,-1104.6360013,0.00013,2]